bitfinex/quotes_ETHUSD_20240811
["timestamp","ask_amount","ask_price","bid_price","bid_amount"]
[1723414328978,3.88836,2571.8,2571.1,3.88937]
[1723414329224,3.88777,2572.2,2571.1,0.07778582]
[1723414329440,3.88837,2571.8,2571.0,2.3066]
[1723414329782,3.88937,2571.2,2570.6,2.3066]
[1723414330005,0.24593,2572.0,2570.6,2.3066]
[1723414330317,3.88954,2571.0,2570.6,2.3066]
[1723414330523,3.88954,2571.0,2570.0,0.389109]
[1723414330524,0.24593,2572.0,2570.1,2.3066]
[1723414330733,3.88991,2570.8,2570.1,2.3066]
[1723414331017,3.88992,2570.8,2570.2,3.89073]
[1723414331224,3.24593,2572.0,2570.1,2.3066]
[1723414331225,3.88929,2571.2,2570.3,0.07781279]
[1723414331397,3.88929,2571.2,2570.5,3.89026]
[1723414331603,9.34778,2571.7,2570.1,2.3066]
[1723414331604,3.88908,2571.3,2570.1,2.3066]
[1723414331802,3.88908,2571.3,2570.7,3.88996]
[1723414332021,3.88837,2571.8,2571.0,3.88943]
[1723414332214,3.88873,2571.6,2570.8,3.88973]
[1723414332439,3.88839,2571.8,2570.8,3.88973]
[1723414332440,3.88833,2571.8,2570.9,0.07778599]
[1723414332736,3.88833,2571.8,2571.0,3.88943]
[1723414332929,3.88833,2571.8,2571.1,3.88928]
[1723414333115,3.88769,2572.3,2571.3,2.4281]
[1723414333339,3.88818,2571.9,2571.3,6.31715]
[1723414333486,3.88762,2572.3,2571.5,3.88877]
[1723414333826,3.88771,2572.3,2571.5,3.88864]
[1723414334016,4.13322,2572.5,2571.8,6.3164]
[1723414334217,0.24593,2572.5,2571.8,6.31639]
[1723414334533,0.24593,2572.5,2571.8,2.4281]
[1723414334699,3.88861,2571.7,2571.2,2.4281]
[1723414334900,3.88822,2571.9,2570.8,2.4281]
[1723414335097,3.88896,2571.4,2570.8,2.4281]
[1723414335312,3.88866,2571.6,2570.8,6.31782]
[1723414335513,0.23006,2572.1,2570.8,2.4281]
[1723414335809,3.88907,2571.4,2570.8,2.4281]
[1723414336008,3.88907,2571.4,2570.4,3.8903]
[1723414336009,3.88933,2571.2,2570.5,3.89028]
[1723414336231,3.88933,2571.2,2570.5,3.89026]
[1723414336526,3.88933,2571.2,2570.6,3.89013]
[1723414336901,4.277837,2571.4,2570.6,3.89013]
[1723414337098,0.4277837,2571.3,2570.6,3.89013]
[1723414337305,3.88926,2571.2,2570.6,3.89013]
[1723414337484,3.88874,2571.6,2570.8,3.88968]
[1723414337911,3.88836,2571.8,2571.0,3.88939]
[1723414338235,3.0,2572.0,2570.6,3.89007]
[1723414338236,4.211246,2571.9,2570.6,3.89007]
[1723414338395,3.88906,2571.4,2570.6,3.89001]
[1723414338589,3.88868,2571.6,2570.8,3.88982]
[1723414338810,4.11794,2572.1,2570.9,2.4911]
[1723414338811,0.23006,2572.1,2570.9,2.4911]
[1723414339103,0.23006,2572.1,2571.3,3.88894]
[1723414339104,3.88813,2572.0,2571.3,3.88894]
[1723414339296,3.88793,2572.1,2571.5,3.88875]
[1723414339690,3.88762,2572.3,2571.6,3.88857]
[1723414339892,3.88772,2572.2,2571.6,2.3968]
[1723414340539,0.243,2572.6,2571.6,2.3968]
[1723414340540,3.88727,2572.5,2571.9,3.88807]
[1723414340694,3.88686,2572.8,2571.9,3.88812]
[1723414341034,3.88652,2573.0,2572.0,0.07775614]
[1723414341193,3.88622,2573.2,2572.5,3.88716]
[1723414341389,3.88693,2572.8,2572.4,2.4232]
[1723414341828,3.88657,2573.0,2572.4,2.4232]
[1723414342035,3.88657,2573.0,2571.6,3.0]
[1723414342036,3.88728,2572.5,2571.9,2.4232]
[1723414342332,7.27,2573.7,2571.1,2.4232]
[1723414342333,3.88701,2572.7,2571.1,2.4232]
[1723414342536,3.88789,2572.1,2571.4,3.8888]
[1723414342753,3.88767,2572.3,2571.4,3.8888]
[1723414343045,3.88819,2571.9,2571.2,8.02061]
[1723414343214,3.88865,2571.6,2571.1,2.4232]
[1723414343398,3.8878,2572.2,2571.1,2.4232]
[1723414343399,3.88861,2571.7,2571.1,2.4232]
[1723414344351,3.8873,2572.5,2571.6,3.88859]
[1723414344507,3.8873,2572.5,2571.1,2.50098322]
[1723414344508,2.3799,2572.7,2571.1,2.4232]
[1723414344713,2.3799,2572.7,2570.7,2.4951]
[1723414344714,3.88949,2571.1,2570.7,2.4951]
[1723414344912,3.88861,2571.7,2570.7,2.4951]
[1723414345114,3.89,2570.7,2570.2,2.4951]
[1723414345411,3.88926,2571.2,2570.4,3.89041]
[1723414345611,3.388861,2571.6,2570.2,2.4951]
[1723414345612,3.88898,2571.4,2570.2,2.4951]
[1723414345927,3.8885,2571.7,2571.0,3.88943]
[1723414346121,2.3799,2572.0,2571.0,3.88943]
[1723414346122,3.88833,2571.8,2571.0,3.88943]
[1723414346329,2.3799,2572.0,2570.9,2.4277]
[1723414346653,2.3799,2572.0,2570.6,0.07779541]
[1723414346654,3.88863,2571.6,2570.6,0.07779541]
[1723414346804,3.0,2572.1,2570.5,2.2702]
[1723414346805,3.8879,2572.1,2571.3,6.15917]
[1723414347138,3.88742,2572.4,2571.7,3.88836]
[1723414347448,4.5677033,2572.4,2571.7,3.88836]
[1723414347603,4.5677033,2572.4,2571.5,3.88872]
[1723414347604,0.6802833,2572.4,2571.5,3.88872]
[1723414347815,2.299,2572.9,2571.3,6.15918]
[1723414348143,2.299,2572.9,2571.5,3.88876]
[1723414348144,3.88797,2572.1,2571.5,3.88876]
[1723414348347,3.88768,2572.3,2571.4,3.88887]
[1723414348663,2.299,2572.6,2570.9,2.2702]
[1723414348944,3.88747,2572.4,2571.7,3.88846]
[1723414349340,8.00371,2572.8,2571.8,0.07776099]
[1723414349651,0.800371,2572.7,2571.6,2.2702]
[1723414349835,3.88754,2572.4,2571.8,3.8883]
[1723414350043,4.11676,2572.8,2572.0,3.88793]
[1723414350044,0.2299,2572.8,2572.0,3.88793]
[1723414350278,3.88758,2572.3,2571.6,2.2702]
[1723414350477,3.88796,2572.1,2571.6,2.2702]
[1723414350767,3.88778,2572.2,2571.2,2.2941]
[1723414350972,4.13687,2572.5,2571.2,2.2941]
[1723414351149,3.88876,2571.6,2570.8,6.35943]
[1723414351490,3.8881,2572.0,2571.4,3.88889]
[1723414351798,0.663247,2572.4,2571.5,2.4697]
[1723414351946,3.88809,2572.0,2571.4,3.8889]
[1723414352145,3.88809,2572.0,2571.2,3.8891]
[1723414352146,0.4800087,2572.3,2571.1,2.4697]
[1723414352356,3.88834,2571.8,2571.2,3.88914]
[1723414352692,3.88822,2571.9,2571.1,2.4697]
[1723414352892,0.43675287,2572.2,2571.1,2.4697]
[1723414353054,3.88811,2572.0,2571.1,2.4697]
[1723414353260,3.88779,2572.2,2571.5,3.88867]
[1723414353556,3.88811,2572.0,2571.4,3.88882]
[1723414353743,3.88811,2572.0,2571.2,3.88911]
[1723414353945,3.88811,2572.0,2571.2,3.96688248]
[1723414354172,7.77624,2572.0,2571.4,3.88888]
[1723414354483,3.88823,2571.9,2571.3,3.88894]
[1723414354786,3.88791,2572.1,2571.4,3.88888]
[1723414354787,7.77589,2572.1,2571.4,3.88888]
[1723414354946,0.43677987,2572.2,2571.6,3.88853]
[1723414355138,0.43677987,2572.2,2571.3,0.07777247]
[1723414355139,3.8879,2572.1,2571.5,3.88876]
[1723414355342,0.4800087,2572.3,2571.4,3.88891]
[1723414355539,3.88821,2571.9,2571.3,3.88906]
[1723414355740,7.77586,2572.1,2571.5,3.88873]
[1723414355945,3.88717,2572.6,2571.7,3.88844]
[1723414356191,3.88717,2572.6,2571.6,2.45916906]
[1723414356192,7.77382,2572.8,2572.1,3.88772]
[1723414356349,3.88628,2573.2,2572.1,0.777581]
[1723414356544,3.88738,2572.5,2571.9,3.88808]
[1723414356853,3.88628,2573.2,2571.9,3.88808]
[1723414356854,3.88703,2572.7,2571.9,3.88808]
[1723414357068,3.88674,2572.9,2572.2,3.88763]
[1723414357378,3.88749,2572.4,2571.8,2.3814]
[1723414357685,2.4374,2573.4,2571.8,2.3814]
[1723414357686,3.88674,2572.9,2571.8,6.26964]
[1723414357899,3.8874,2572.5,2571.8,6.26969]
[1723414358072,0.38874,2572.4,2571.8,6.26969]
[1723414358257,3.88751,2572.4,2571.8,6.26969]
[1723414358463,3.88672,2572.9,2571.8,2.3814]
[1723414358760,3.88838,2571.8,2571.0,6.27081]
[1723414358947,3.88828,2571.9,2571.3,3.88907]
[1723414359147,3.88828,2571.9,2571.2,3.88913]
[1723414359148,3.88772,2572.2,2571.4,3.88881]
[1723414359363,3.88772,2572.2,2571.6,3.88852]
[1723414359873,3.88678,2572.9,2571.7,2.3925]
[1723414360200,3.88684,2572.8,2571.7,2.3925]
[1723414360362,3.88758,2572.3,2571.7,6.28095]
[1723414360560,3.88732,2572.5,2571.8,3.88822]
[1723414360874,3.88732,2572.5,2571.8,3.88819]
[1723414361046,4.275724,2572.7,2571.7,2.3925]
[1723414361251,3.88704,2572.7,2572.0,3.88792]
[1723414361807,3.88704,2572.7,2571.8,0.077756]
[1723414361808,3.88785,2572.2,2571.7,2.3925]
[1723414361972,3.88789,2572.1,2571.7,2.3925]
[1723414362172,3.88789,2572.1,2571.4,3.88892]
[1723414362173,3.88844,2571.8,2571.3,2.3633]
[1723414362572,3.88768,2572.3,2571.7,3.88838]
[1723414362869,3.88674,2572.9,2571.8,3.96603211]
[1723414363208,3.88716,2572.6,2571.7,2.3633]
[1723414363359,3.88796,2572.1,2571.7,2.3633]
[1723414363558,2.42,2572.8,2571.7,2.3633]
[1723414363754,3.88789,2572.1,2571.7,2.3633]
[1723414363979,7.77473,2572.5,2571.7,6.25167]
[1723414364179,0.242,2572.7,2571.7,6.25167]
[1723414364180,0.242,2572.7,2572.0,3.888]
[1723414364381,3.88672,2572.9,2572.0,3.888]
[1723414364382,3.88672,2572.9,2572.2,3.88771]
[1723414364583,3.88672,2572.9,2572.0,3.888]
[1723414364584,2.42,2573.2,2572.0,3.888]
[1723414364796,2.42,2573.2,2571.7,2.3633]
[1723414364797,3.88787,2572.1,2571.7,2.3633]
[1723414365341,3.88763,2572.3,2571.7,2.3633]
[1723414365597,3.88784,2572.2,2571.7,2.3633]
[1723414365770,3.88811,2572.0,2571.7,2.3633]
[1723414365972,3.88784,2572.2,2571.7,2.3633]
[1723414366496,3.88796,2572.1,2571.7,2.3633]
[1723414367074,3.88765,2572.3,2571.7,2.3633]
[1723414367306,3.8878,2572.2,2571.7,2.3633]
[1723414367472,3.88733,2572.5,2571.8,0.07776619]
[1723414367674,3.88689,2572.8,2571.7,2.3633]
[1723414367904,3.88799,2572.1,2571.7,2.3633]
[1723414368087,3.88797,2572.1,2571.7,2.3633]
[1723414368261,3.88858,2571.7,2571.2,2.3633]
[1723414369302,3.88818,2571.9,2571.2,6.25244]
[1723414369610,2.4057,2572.9,2571.2,2.3633]
[1723414369812,4.08517,2573.9,2571.9,2.2533]
[1723414369813,2.4057,2573.4,2571.9,2.2533]
[1723414369963,7.77375,2572.8,2572.2,3.88771]
[1723414370158,3.88681,2572.8,2572.2,3.88761]
[1723414370500,3.88652,2573.0,2572.4,6.1407]
[1723414370824,6.29106,2573.8,2572.4,6.1407]
[1723414370825,3.88631,2573.2,2572.6,3.88702]
[1723414371104,3.88565,2573.6,2572.8,7.77352]
[1723414371105,3.886,2573.4,2572.8,7.77352]
[1723414371260,3.88463,2574.3,2572.8,7.77352]
[1723414371261,2.4057,2574.7,2572.9,2.2533]
[1723414371461,3.88453,2574.4,2573.6,3.8855]
[1723414371709,3.88518,2573.9,2573.3,2.3658]
[1723414371863,3.88557,2573.7,2573.3,2.3658]
[1723414372067,3.88565,2573.6,2573.3,2.3658]
[1723414372294,3.88457,2574.3,2572.9,2.3658]
[1723414372295,3.88576,2573.5,2572.9,2.3658]
[1723414372503,3.88576,2573.5,2572.9,5.3658]
[1723414372974,3.8855,2573.7,2572.9,2.3658]
[1723414373125,3.88637,2573.1,2572.9,2.3658]
[1723414373328,3.8861,2573.3,2572.9,2.3658]
[1723414374033,0.38855,2573.6,2572.9,6.25233]
[1723414374239,3.88457,2574.3,2573.1,3.88635]
[1723414374543,3.88545,2573.7,2573.3,2.3094]
[1723414374922,3.88545,2573.7,2572.9,3.88659]
[1723414374923,0.777067,2573.7,2572.9,2.4748]
[1723414375119,6.88433,2574.5,2572.9,2.4748]
[1723414375120,3.88592,2573.4,2572.9,2.4748]
[1723414376137,3.88625,2573.2,2572.9,2.4748]
[1723414376334,3.88651,2573.0,2572.9,2.4748]
[1723414376533,2.378,2574.0,2572.4,2.4021]
[1723414376534,3.88699,2572.7,2572.4,2.4021]
[1723414376736,3.88669,2572.9,2572.4,2.4021]
[1723414376937,4.84999,2573.9,2572.4,6.28947]
[1723414376938,3.88657,2573.0,2572.4,6.28947]
[1723414377249,3.88657,2573.0,2572.4,2.4021]
[1723414377250,0.777301,2572.9,2572.4,2.4021]
[1723414377433,3.88657,2573.0,2572.4,6.28938]
[1723414377633,0.9648,2573.9,2572.4,2.4021]
[1723414377826,0.9648,2573.9,2572.7,3.88686]
[1723414377827,3.88615,2573.3,2572.7,3.88686]
[1723414378066,3.88601,2573.4,2572.7,3.88686]
[1723414378266,7.77202,2573.4,2572.7,7.77372]
[1723414378430,7.77202,2573.4,2572.7,3.88686]
[1723414378763,3.88584,2573.5,2573.0,2.3452]
[1723414378926,3.88567,2573.6,2573.1,3.88635]
[1723414379127,3.8848,2574.2,2573.4,2.3452]
[1723414379341,3.8848,2574.2,2573.5,0.07770502]
[1723414379540,7.76963,2574.2,2573.5,3.96341502]
[1723414379741,3.88446,2574.4,2573.9,3.88514]
[1723414380037,3.88436,2574.5,2573.9,2.385]
[1723414380223,3.88436,2574.5,2573.9,6.90494077]
[1723414380426,2.2944,2575.2,2574.2,3.8846]
[1723414380427,3.88373,2574.9,2574.2,3.8846]
[1723414380630,7.27,2575.8,2574.3,3.88441]
[1723414380631,3.88351,2575.0,2574.3,3.88441]
[1723414380836,2.90300342,2575.5,2574.0,0.0776966]
[1723414380837,3.88312,2575.3,2574.0,0.0776966]
[1723414381053,0.44912534,2575.4,2573.9,2.385]
[1723414381054,3.88467,2574.3,2573.9,2.385]
[1723414381259,3.88431,2574.5,2573.9,2.385]
[1723414381463,3.88479,2574.2,2573.9,2.385]
[1723414381664,3.88446,2574.4,2573.9,2.385]
[1723414382154,2.2835,2574.5,2572.8,0.24791592]
[1723414382338,0.1,2575.0,2572.5,6.38074]
[1723414382339,3.88629,2573.2,2572.5,6.38074]
[1723414382540,4.274999,2573.1,2572.5,6.38074]
[1723414382747,3.88596,2573.4,2572.6,3.88701]
[1723414382945,3.88631,2573.2,2572.6,3.88701]
[1723414383338,3.88677,2572.9,2572.5,2.4936]
[1723414383542,3.88693,2572.8,2572.5,2.4936]
[1723414383770,3.8861,2573.3,2572.5,2.4936]
[1723414383771,3.88641,2573.1,2572.5,2.4936]
[1723414383943,3.88677,2572.9,2572.5,2.4936]
[1723414384152,3.88669,2572.9,2572.5,2.4936]
[1723414384353,3.88711,2572.6,2572.1,2.4936]
[1723414384582,0.388711,2572.6,2571.7,2.883]
[1723414384779,3.88774,2572.2,2571.7,2.4936]
[1723414385078,3.8871,2572.7,2572.0,3.88791]
[1723414385251,3.88731,2572.5,2572.0,0.07775189]
[1723414385451,3.88731,2572.5,2571.9,2.3448]
[1723414385644,4.225431,2573.0,2571.9,2.3448]
[1723414385645,0.338861,2573.0,2571.9,6.23297]
[1723414385846,3.8886,2571.7,2571.2,2.2731]
[1723414386042,3.88888,2571.5,2570.9,2.2731]
[1723414386442,3.88912,2571.3,2570.9,2.2731]
[1723414386643,3.88933,2571.2,2570.9,2.2731]
[1723414386855,3.88912,2571.3,2570.9,2.2731]
[1723414386856,3.88941,2571.1,2570.9,2.2731]
[1723414387050,3.88862,2571.7,2571.0,3.88938]
[1723414387682,3.88862,2571.7,2571.1,3.9671486]
[1723414387911,3.0,2572.2,2571.3,3.88897]
[1723414387912,3.88804,2572.0,2571.3,3.88897]
[1723414388052,3.88844,2571.8,2571.2,3.88921]
[1723414388257,3.88844,2571.8,2570.9,2.50041]
[1723414388258,3.88828,2571.9,2571.1,0.07777848]
[1723414388458,3.88774,2572.2,2571.0,3.88939]
[1723414388784,3.88863,2571.6,2571.0,1.027936]
[1723414389083,3.88836,2571.8,2571.1,3.96705861]
[1723414389259,3.88836,2571.8,2571.1,7.85630861]
[1723414389464,3.88836,2571.8,2571.1,3.96702861]
[1723414389683,3.88847,2571.7,2571.1,3.96702861]
[1723414390085,3.88836,2571.8,2571.1,3.88925]
[1723414390589,3.88836,2571.8,2571.0,0.07777845]
[1723414390900,3.88846,2571.8,2571.0,3.96730845]
[1723414391049,3.88834,2571.8,2571.1,2.4833]
[1723414391244,3.88888,2571.5,2571.1,2.4833]
[1723414391558,3.88838,2571.8,2571.1,2.56108016]
[1723414391783,3.88852,2571.7,2571.1,2.4833]
[1723414392307,3.88822,2571.9,2571.1,2.4833]
[1723414392609,3.88908,2571.4,2571.1,2.4833]
[1723414392787,3.88923,2571.2,2570.7,2.4833]
[1723414392995,3.88963,2571.0,2570.3,2.4561]
[1723414393195,3.88994,2570.8,2570.3,2.4561]
[1723414393505,0.623088,2571.7,2570.3,2.4561]
[1723414393706,3.88994,2570.8,2570.3,2.4561]
[1723414393906,3.89028,2570.6,2570.3,2.4561]
[1723414394226,3.8904,2570.5,2569.3,2.451]
[1723414394514,3.89032,2570.5,2569.8,3.89134]
[1723414394711,3.89032,2570.5,2569.7,3.89149]
[1723414394893,3.89032,2570.5,2569.6,3.89159]
[1723414394894,3.89061,2570.3,2569.6,3.89159]
[1723414395069,3.89061,2570.3,2569.6,4.915038]
[1723414395270,3.89035,2570.5,2569.6,4.915088]
[1723414395469,3.88984,2570.8,2570.0,3.89095]
[1723414395714,3.0,2571.2,2570.1,0.07780874]
[1723414395872,3.89025,2570.6,2570.0,4.525145]
[1723414396070,3.89055,2570.4,2569.9,2.451]
[1723414396299,3.89061,2570.3,2569.9,2.451]
[1723414396497,3.89044,2570.4,2569.9,2.451]
[1723414396774,3.89036,2570.5,2569.9,2.451]
[1723414396970,3.89003,2570.7,2570.0,3.89104]
[1723414397173,6.88926,2571.2,2569.9,2.451]
[1723414397174,3.89037,2570.5,2569.9,2.451]
[1723414397408,3.89076,2570.2,2569.9,2.451]
[1723414397596,3.8909,2570.1,2569.5,2.4699]
[1723414397931,3.8913,2569.9,2569.5,2.4699]
[1723414398479,3.89066,2570.3,2569.5,2.4699]
[1723414398680,3.89039,2570.5,2569.8,3.89124]
[1723414398875,3.89075,2570.2,2569.6,4.13859]
[1723414399080,3.0,2570.9,2569.7,4.552339]
[1723414399081,7.78103,2570.4,2569.7,4.552339]
[1723414399492,3.89059,2570.3,2569.7,4.552339]
[1723414399687,3.89044,2570.4,2569.7,0.660849]
[1723414399887,3.89044,2570.4,2569.8,3.89121]
[1723414400811,2.2763,2571.2,2569.9,3.89119]
[1723414400812,3.88991,2570.8,2569.9,3.89119]
[1723414400986,3.8903,2570.5,2569.9,0.07781392]
[1723414401185,3.8899,2570.8,2569.8,0.4799049]
[1723414401425,3.89063,2570.3,2569.7,0.660849]
[1723414401582,3.89092,2570.1,2569.7,0.660849]
[1723414401786,3.89063,2570.3,2569.6,3.89152]
[1723414401987,3.89063,2570.3,2569.6,3.89163]
[1723414402226,3.89063,2570.3,2569.7,3.8914]
[1723414402409,3.89036,2570.5,2569.5,2.4699]
[1723414402410,3.89042,2570.5,2569.5,2.4699]
[1723414402609,0.389036,2570.4,2569.5,2.4699]
[1723414402812,0.389036,2570.4,2569.5,6.36164]
[1723414402996,3.89051,2570.4,2569.5,6.36164]
[1723414403203,3.89051,2570.4,2569.8,3.89134]
[1723414403405,7.27,2571.3,2570.0,2.2778]
[1723414403605,3.88903,2571.4,2570.8,2.2778]
[1723414403806,3.8895,2571.1,2570.8,2.2778]
[1723414404006,3.88963,2571.0,2570.8,2.2778]
[1723414404187,3.88925,2571.2,2570.8,2.2778]
[1723414404392,3.88885,2571.5,2570.8,2.2778]
[1723414404593,3.88896,2571.4,2570.9,3.88957]
[1723414405288,11.15821,2571.9,2570.8,2.51335966]
[1723414405488,3.88968,2570.9,2570.5,2.2622]
[1723414405721,3.88929,2571.2,2570.5,6.15244]
[1723414405927,3.88963,2571.0,2570.5,2.877444]
[1723414406105,3.88963,2571.0,2570.5,2.2622]
[1723414406435,3.88931,2571.2,2570.5,6.15248]
[1723414406603,1.115834,2571.7,2570.5,2.2622]
[1723414406813,3.88942,2571.1,2569.9,6.15331]
[1723414407017,3.89045,2570.4,2569.9,2.2622]
[1723414407219,3.89045,2570.4,2569.6,2.2622]
[1723414407220,0.389045,2570.4,2569.6,2.2622]
[1723414407435,3.89051,2570.4,2569.7,3.96926454]
[1723414407610,3.89036,2570.5,2569.7,0.07782454]
[1723414407954,3.89036,2570.5,2569.8,3.89124]
[1723414408263,3.89023,2570.6,2569.8,3.89124]
[1723414408407,3.88988,2570.8,2569.8,0.62312594]
[1723414408615,2.2973,2570.5,2569.6,2.2622]
[1723414408808,2.2973,2570.5,2569.4,3.89185]
[1723414408809,3.89114,2570.0,2569.4,3.89185]
[1723414409038,3.89104,2570.1,2569.4,4.896478]
[1723414409244,3.89101,2570.1,2569.4,4.896468]
[1723414409546,3.89099,2570.1,2569.4,4.896448]
[1723414409934,4.12009,2570.5,2569.6,3.89155]
[1723414410112,3.89036,2570.5,2569.9,2.4681]
[1723414410312,7.78076,2570.5,2569.9,2.4681]
[1723414410513,3.89054,2570.4,2569.9,2.4681]
[1723414410825,3.8908,2570.2,2569.9,2.4681]
[1723414411153,3.89054,2570.4,2569.5,2.3208]
[1723414411154,3.89136,2569.8,2569.5,2.3208]
[1723414411648,0.778134,2570.2,2569.1,2.3671]
[1723414411649,3.89205,2569.4,2569.1,2.3671]
[1723414411949,3.162234,2570.2,2568.7,2.3671]
[1723414411950,3.89246,2569.1,2568.7,2.3671]
[1723414412107,3.89246,2569.1,2568.2,0.60877215]
[1723414412108,3.89281,2568.9,2568.2,3.89366]
[1723414412307,3.89281,2568.9,2568.0,3.89401]
[1723414412308,3.89313,2568.7,2568.3,2.3671]
[1723414412653,6.27595,2569.5,2567.3,0.19226468]
[1723414412654,3.89321,2568.6,2567.9,2.3345]
[1723414412804,3.89342,2568.5,2567.9,2.3345]
[1723414413007,0.627595,2569.4,2568.0,3.89398]
[1723414413206,3.893,2568.8,2568.1,3.8939]
[1723414413452,3.89351,2568.4,2567.9,2.3345]
[1723414413755,3.89347,2568.4,2567.9,2.3345]
[1723414413920,7.78708,2568.4,2567.9,2.3345]
[1723414414112,3.89347,2568.4,2567.9,2.3345]
[1723414414329,3.8935,2568.4,2567.9,2.3345]
[1723414414656,3.89299,2568.8,2568.1,3.89383]
[1723414414962,4.4933195,2569.3,2567.9,2.3345]
[1723414414963,3.89259,2569.0,2567.9,2.3345]
[1723414415266,3.89393,2568.1,2567.9,2.3345]
[1723414415435,3.89351,2568.4,2567.9,2.3345]
[1723414416055,3.89323,2568.6,2567.9,2.3345]
[1723414416371,3.89357,2568.4,2567.9,2.3345]
[1723414416723,7.78717,2568.4,2567.9,2.3345]
[1723414416923,3.89363,2568.3,2567.9,2.3345]
[1723414417159,3.89357,2568.4,2567.9,2.3345]
[1723414417733,3.89383,2568.2,2567.9,2.3345]
[1723414418155,3.89292,2568.8,2567.9,6.22863]
[1723414418156,3.89325,2568.6,2567.9,6.22863]
[1723414418460,3.89325,2568.6,2567.9,6.85928113]
[1723414418670,3.89291,2568.8,2568.2,3.89372]
[1723414418968,3.89396,2568.1,2567.9,2.3345]
[1723414419126,3.89396,2568.1,2567.4,2.4981]
[1723414419324,3.89372,2568.3,2567.4,3.5762921]
[1723414419526,3.89372,2568.3,2567.7,3.89443]
[1723414419827,3.89378,2568.2,2567.5,3.89472]
[1723414420140,3.89372,2568.3,2567.6,0.81719405]
[1723414420339,3.89338,2568.5,2567.8,3.89428]
[1723414420664,3.89338,2568.5,2567.8,3.89436]
[1723414420886,3.89379,2568.2,2567.5,7.7895]
[1723414421039,0.389291,2568.7,2567.5,3.89471]
[1723414421040,3.89375,2568.3,2567.5,3.89471]
[1723414421249,7.78749,2568.3,2567.6,3.89467]
[1723414421546,3.89393,2568.1,2567.4,6.39308]
[1723414421750,0.389393,2568.1,2567.5,3.89481]
[1723414421955,0.6649731,2568.6,2567.4,2.4981]
[1723414422160,3.8941,2568.0,2567.4,2.4981]
[1723414422475,3.89381,2568.2,2567.5,3.89481]
[1723414423008,3.89409,2568.0,2567.4,6.39303]
[1723414423277,3.89409,2568.0,2567.4,2.4981]
[1723414423583,3.89359,2568.4,2567.8,3.89429]
[1723414423739,2.3675,2568.8,2567.4,2.4981]
[1723414423740,6.26042,2568.8,2567.4,2.4981]
[1723414424083,6.26042,2568.8,2567.3,3.89504]
[1723414424084,3.89478,2567.6,2567.0,2.3012]
[1723414424591,3.89411,2568.0,2567.1,3.89535]
[1723414424879,3.89438,2567.8,2567.0,2.3012]
[1723414425081,7.78887,2567.8,2567.1,3.89535]
[1723414425376,3.89444,2567.8,2567.0,2.3012]
[1723414425575,3.89463,2567.7,2567.1,3.89534]
[1723414425780,3.89455,2567.7,2567.1,3.89531]
[1723414425942,3.89469,2567.6,2567.1,3.89531]
[1723414426448,3.89469,2567.6,2567.0,2.920888]
[1723414426449,3.89499,2567.4,2567.0,2.3012]
[1723414426988,2.3215,2568.2,2567.6,3.89465]
[1723414426989,3.89389,2568.2,2567.6,3.89465]
[1723414427187,6.005542,2568.7,2567.6,2.4548]
[1723414427343,3.89357,2568.4,2567.6,2.7080686]
[1723414427549,7.78715,2568.4,2567.8,3.89425]
[1723414427773,4.8830622,2568.6,2567.8,7.7885]
[1723414427980,2.4368,2569.1,2567.9,0.07788064]
[1723414428280,2.4368,2569.5,2568.6,3.89307]
[1723414428452,0.59505085,2570.1,2568.1,2.2604]
[1723414428453,3.89252,2569.1,2568.1,2.2604]
[1723414428653,2.4368,2570.0,2568.2,0.30390417]
[1723414428855,2.4368,2570.0,2568.5,6.15368]
[1723414429060,2.4368,2570.0,2568.7,3.8929]
[1723414429061,3.89228,2569.2,2568.7,3.8929]
[1723414429308,3.89197,2569.4,2568.8,3.89285]
[1723414429478,3.89129,2569.9,2568.9,2.2604]
[1723414429680,3.89164,2569.7,2569.0,0.2727541]
[1723414429919,3.89164,2569.7,2569.1,3.89241]
[1723414430123,7.78253,2569.9,2569.2,3.89223]
[1723414430295,3.89124,2569.9,2569.3,3.89209]
[1723414430628,0.24368,2570.0,2569.1,3.89234]
[1723414430790,2.4368,2570.3,2568.9,6.15301]
[1723414431129,3.89153,2569.7,2569.1,3.89231]
[1723414431324,3.89151,2569.7,2569.1,3.8923]
[1723414431615,3.89151,2569.7,2568.9,6.15305]
[1723414431616,3.89175,2569.6,2569.0,0.07784248]
[1723414431823,3.89175,2569.6,2568.9,6.15299]
[1723414432123,3.89175,2569.6,2568.9,6.807224]
[1723414432124,3.89181,2569.5,2568.9,6.807224]
[1723414432279,3.89175,2569.6,2568.9,2.914634]
[1723414432280,3.89198,2569.4,2568.9,2.914634]
[1723414432625,3.89185,2569.5,2568.9,2.914634]
[1723414432807,3.89206,2569.4,2568.9,2.2604]
[1723414433197,3.89154,2569.7,2569.1,3.89241]
[1723414433394,6.89078,2570.2,2569.1,3.89241]
[1723414433395,3.89083,2570.2,2569.5,6.14906]
[1723414433605,3.89066,2570.3,2569.6,4.506466]
[1723414433808,3.89066,2570.3,2569.7,3.8915]
[1723414434123,3.89006,2570.7,2570.1,3.89074]
[1723414434325,3.88945,2571.1,2570.2,3.96854398]
[1723414434534,3.88945,2571.1,2570.3,0.0778066]
[1723414434698,2.4574,2571.6,2570.2,3.96847333]
[1723414434899,3.88988,2570.8,2570.2,4.59393066]
[1723414435157,3.88999,2570.7,2570.2,0.70328066]